bitfinex-derivatives/quotes_BTCF0:USTF0_20250809
["timestamp","ask_amount","ask_price","bid_price","bid_amount"]
[1754744004193,0.1950584,117190.0,117180.0,1.8138516]
[1754744004394,0.2098284,117190.0,117180.0,1.8138516]
[1754744005298,0.2098284,117190.0,117180.0,1.96721628]
[1754744006196,0.2098284,117190.0,117180.0,1.8138516]
[1754744007098,0.2098284,117190.0,117180.0,1.96721628]
[1754744008594,0.2098284,117190.0,117180.0,1.8138516]
[1754744008995,0.2098284,117190.0,117180.0,1.0351716]
[1754744009397,0.2098284,117190.0,117180.0,1.7284459]
[1754744009798,0.2098284,117190.0,117180.0,1.8137715]
[1754744012895,0.2098284,117190.0,117180.0,1.92114913]
[1754744013098,0.2098284,117190.0,117180.0,1.8137715]
[1754744018193,0.2098284,117190.0,117180.0,1.92115684]
[1754744025410,0.2098284,117190.0,117180.0,1.8137715]
[1754744025908,0.2098284,117190.0,117180.0,1.92115684]
[1754744029208,0.1606384,117190.0,117180.0,1.92115684]
[1754744029504,0.1606384,117190.0,117180.0,2.18122344]
[1754744030611,0.1606384,117190.0,117180.0,1.92115684]
[1754744032714,0.1606384,117190.0,117180.0,1.40102364]
[1754744032909,0.1606384,117190.0,117180.0,1.92115684]
[1754744033218,0.1606384,117190.0,117180.0,1.40102364]
[1754744033512,0.1606384,117190.0,117180.0,1.92115684]
[1754744034012,0.1940184,117190.0,117180.0,1.92115684]
[1754744034814,0.1130384,117190.0,117180.0,1.92115684]
[1754744035014,0.1130384,117190.0,117180.0,2.18122344]
[1754744035505,0.1130384,117190.0,117180.0,2.0738381]
[1754744037617,0.1130384,117190.0,117180.0,2.22720278]
[1754744038814,0.1130384,117190.0,117180.0,2.32793618]
[1754744040914,0.1130384,117190.0,117180.0,2.1745715]
[1754744041318,0.0902184,117190.0,117180.0,2.1745715]
[1754744041511,0.1134984,117190.0,117180.0,2.1745715]
[1754744042210,0.0902184,117190.0,117180.0,2.4346381]
[1754744042408,0.1134984,117190.0,117180.0,2.4346381]
[1754744042717,0.0902184,117190.0,117180.0,2.4346381]
[1754744043110,0.0049,117190.0,117180.0,2.4346381]
[1754744043312,0.0902183,117190.0,117180.0,2.4346381]
[1754744048215,0.0902183,117190.0,117180.0,2.58800278]
[1754744053019,0.0902183,117190.0,117180.0,2.4346381]
[1754744055521,0.1149283,117190.0,117180.0,2.4346381]
[1754744057526,0.2077883,117190.0,117180.0,2.1745715]
[1754744058024,0.2077883,117190.0,117180.0,1.3959715]
[1754744058320,0.2077883,117190.0,117180.0,2.0890459]
[1754744058526,0.2077883,117190.0,117180.0,2.19649222]
[1754744058925,0.2077883,117190.0,117180.0,2.28181782]
[1754744061132,0.2077883,117190.0,117180.0,2.4351825]
[1754744061331,0.2077883,117190.0,117180.0,2.32773618]
[1754744063831,0.2077883,117190.0,117180.0,2.24241058]
[1754744064332,0.2077883,117190.0,117180.0,2.34983741]
[1754744065032,0.2077883,117190.0,117180.0,2.19647273]
[1754744068641,0.2077883,117190.0,117180.0,1.41807273]
[1754744068835,0.2266242,117190.0,117180.0,2.19643273]
[1754744069236,0.2266242,117190.0,117180.0,2.0890059]
[1754744072643,0.2266242,117190.0,117180.0,2.1743315]
[1754744075250,0.2266242,117190.0,117180.0,2.28173578]
[1754744076644,0.2266242,117190.0,117180.0,2.1743315]
[1754744077147,0.2266242,117190.0,117180.0,2.28171557]
[1754744078943,0.2266242,117190.0,117180.0,2.19638997]
[1754744079147,0.2266242,117190.0,117180.0,2.28171557]
[1754744080149,0.2266242,117190.0,117180.0,2.19638997]
[1754744082054,0.2266242,117190.0,117180.0,1.47478997]
[1754744082352,0.2266242,117190.0,117180.0,1.83558997]
[1754744082949,0.2270642,117190.0,117180.0,1.83558997]
[1754744090352,0.2270642,117190.0,117180.0,1.7282059]
[1754744094261,0.2270642,117190.0,117180.0,1.83558997]
[1754744096763,0.2132342,117190.0,117180.0,1.83558997]
[1754744098064,0.2132342,117190.0,117180.0,1.7282059]
[1754744100862,0.2270642,117190.0,117180.0,1.7282059]
[1754744102763,0.2221642,117190.0,117180.0,1.7282059]
[1754744103866,0.2221642,117190.0,117180.0,1.83573386]
[1754744104163,0.2221642,117190.0,117180.0,1.47493386]
[1754744104358,0.4368808,117190.0,117180.0,0.3289793]
[1754744104556,0.2228342,117190.0,117180.0,1.47466483]
[1754744109470,0.4829008,117190.0,117180.0,0.01783373]
[1754744109665,0.8437008,117190.0,117180.0,0.79587373]
[1754744109968,0.8437008,117190.0,117180.0,1.05594033]
[1754744110169,0.5836342,117190.0,117180.0,1.03322203]
[1754744110372,0.8437008,117190.0,117180.0,1.03322203]
[1754744110667,0.8477008,117190.0,117180.0,1.01115203]
[1754744110869,0.8507008,117190.0,117180.0,1.01215203]
[1754744114072,0.5906342,117190.0,117180.0,1.01215203]
[1754744114372,0.8507008,117190.0,117180.0,1.01215203]
[1754744119769,0.5906342,117190.0,117180.0,0.001]
[1754744120078,0.8507008,117190.0,117180.0,0.6159358]
[1754744120378,0.8507008,117190.0,117180.0,0.461691]
[1754744120577,0.8507008,117190.0,117180.0,0.3643678]
[1754744121071,0.8507008,117190.0,117180.0,0.3089128]
[1754744121272,0.8507008,117190.0,117180.0,0.2807064]
[1754744121474,0.8507008,117190.0,117180.0,0.2544787]
[1754744122581,0.8507008,117190.0,117180.0,0.2233931]
[1754744122879,0.8507008,117190.0,117180.0,0.1209404]
[1754744124376,0.0853256,117180.0,117170.0,1.0380266]
[1754744124579,0.4631722,117180.0,117170.0,1.0380266]
[1754744125881,0.4661722,117180.0,117170.0,1.0380266]
[1754744126579,0.2061056,117180.0,117170.0,1.0380266]
[1754744126877,0.4661722,117180.0,117170.0,1.0380266]
[1754744127180,0.4681722,117180.0,117170.0,1.0390266]
[1754744130585,0.2081056,117180.0,117170.0,1.0390266]
[1754744131183,0.2081056,117180.0,117170.0,0.77896]
[1754744131384,0.2081056,117180.0,117170.0,1.0390266]
[1754744131584,0.2081056,117180.0,117170.0,0.77896]
[1754744132385,0.2081056,117180.0,117170.0,1.0390266]
[1754744135389,0.1129356,117180.0,117170.0,1.0390266]
[1754744136085,0.1388356,117180.0,117170.0,1.0390266]
[1754744136387,0.2079556,117180.0,117170.0,1.0390266]
[1754744142697,0.2079556,117180.0,117170.0,1.14643923]
[1754744142991,0.4680222,117180.0,117170.0,1.14643923]
[1754744144988,0.2079556,117180.0,117170.0,1.14643923]
[1754744145181,0.4680222,117180.0,117170.0,1.14643923]
[1754744146394,0.4680222,117180.0,117170.0,0.88637263]
[1754744146595,0.4680222,117180.0,117170.0,1.14643923]
[1754744148195,0.2079556,117180.0,117170.0,1.14643923]
[1754744152701,0.2079556,117180.0,117170.0,0.88637263]
[1754744152895,0.2079556,117180.0,117170.0,1.14643923]
[1754744153599,0.4680222,117180.0,117170.0,1.14643923]
[1754744154302,0.4680222,117180.0,117170.0,0.88637263]
[1754744154499,0.4680222,117180.0,117170.0,1.14643923]
[1754744154801,0.4680222,117180.0,117170.0,4e-08]
[1754744154802,1.43429783,117180.0,117170.0,4e-08]
[1754744154990,0.2049902,117160.0,117150.0,1.13852]
[1754744155191,0.2049902,117160.0,117150.0,1.3985866]
[1754744155192,0.48443566,117160.0,117150.0,1.3985866]
[1754744156300,0.48443566,117160.0,117150.0,1.4005866]
[1754744156799,0.74450226,117160.0,117150.0,1.4005866]
[1754744156995,0.22436906,117160.0,117150.0,1.4005866]
[1754744157199,0.74450226,117160.0,117150.0,1.4035866]
[1754744158603,0.74450226,117160.0,117150.0,1.4005866]
[1754744158801,0.48443566,117160.0,117150.0,1.4005866]
[1754744161007,0.48443566,117160.0,117150.0,1.3985866]
[1754744161209,0.48543566,117160.0,117150.0,1.3985866]
[1754744161409,0.22536906,117160.0,117150.0,1.3985866]
[1754744161707,0.48543566,117160.0,117150.0,1.3985866]
[1754744173619,0.48543566,117160.0,117150.0,1.0377866]
[1754744174111,0.10571906,117160.0,117150.0,1.7440004]
[1754744174317,0.10571906,117160.0,117150.0,1.3985866]
[1754744174516,0.12866906,117160.0,117150.0,1.50605357]
[1754744181730,0.12866906,117160.0,117150.0,1.3985866]
[1754744182931,0.12866906,117160.0,117150.0,1.50609808]
[1754744189734,0.12866906,117160.0,117150.0,1.3985866]
[1754744193937,0.17574906,117160.0,117150.0,1.3985866]
[1754744194137,0.48262566,117160.0,117150.0,1.3985866]
[1754744194740,0.12866906,117160.0,117150.0,1.3985866]
[1754744194934,0.10571906,117160.0,117150.0,1.3985866]
[1754744195343,0.10571906,117160.0,117150.0,1.6586532]
[1754744195543,0.12852906,117160.0,117150.0,1.6586532]
[1754744195938,0.12852906,117160.0,117150.0,1.3985866]
[1754744196138,0.12852906,117160.0,117150.0,1.6586532]
[1754744196338,0.12852906,117160.0,117150.0,1.3985866]
[1754744196543,0.12852906,117160.0,117150.0,1.50613328]
[1754744200144,0.10571906,117160.0,117150.0,1.59148038]
[1754744200347,0.10571906,117160.0,117150.0,1.85154698]
[1754744200840,0.12852906,117160.0,117150.0,1.85154698]
[1754744202441,0.12852906,117160.0,117150.0,1.7440003]
[1754744205247,0.12852906,117160.0,117150.0,1.6586532]
[1754744206436,0.12852906,117160.0,117150.0,1.3985866]
[1754744208448,0.12852906,117160.0,117150.0,1.4839336]
[1754744209849,0.12852906,117160.0,117150.0,1.59149384]
[1754744210741,0.12852906,117160.0,117150.0,1.85156044]
[1754744210949,0.10571906,117160.0,117150.0,1.85156044]
[1754744211350,0.10571906,117160.0,117150.0,1.7440002]
[1754744212549,0.10571906,117160.0,117150.0,1.89736488]
[1754744213242,0.10571906,117160.0,117150.0,1.7440002]
[1754744216654,0.12852906,117160.0,117150.0,1.7440002]
[1754744217857,0.12852906,117160.0,117150.0,1.85151367]
[1754744222257,0.12852906,117160.0,117150.0,1.7440002]
[1754744226151,0.12852906,117160.0,117150.0,1.3832002]
[1754744226460,0.12852906,117160.0,117150.0,2.1048002]
[1754744226856,0.12852906,117160.0,117150.0,2.21231367]
[1754744227361,0.12852906,117160.0,117150.0,2.1048002]
[1754744227554,0.12752906,117160.0,117150.0,2.1048002]
[1754744227749,0.12752906,117160.0,117150.0,2.1058002]
[1754744228662,0.12752906,117160.0,117150.0,2.1068002]
[1754744229062,0.12752906,117160.0,117150.0,2.1098002]
[1754744230262,0.2560118,117170.0,117160.0,0.0853398]
[1754744230467,0.1706726,117170.0,117160.0,1.2263396]
[1754744230765,0.1939326,117170.0,117160.0,1.2263396]
[1754744230954,0.1939326,117170.0,117160.0,0.966273]
[1754744231153,0.1939326,117170.0,117160.0,1.33380344]
[1754744231351,0.1939326,117170.0,117160.0,0.97300344]
[1754744231557,0.1949326,117170.0,117160.0,1.69460344]
[1754744232354,0.001,117170.0,117160.0,1.5871396]
[1754744232554,0.1095925,117170.0,117160.0,1.69458621]
[1754744232957,0.1095925,117170.0,117160.0,1.327073]
[1754744233161,0.1095925,117170.0,117160.0,1.5871396]
[1754744233661,0.1095925,117170.0,117160.0,1.5901396]
[1754744233863,0.1095925,117170.0,117160.0,1.330073]
[1754744234263,0.1095925,117170.0,117160.0,1.5901396]
[1754744235268,0.1085925,117170.0,117160.0,1.5921396]
[1754744236471,0.1085925,117170.0,117160.0,1.332073]
[1754744236971,0.1085925,117170.0,117160.0,1.5921396]
[1754744240473,0.1085925,117170.0,117160.0,1.332073]
[1754744242179,0.2021725,117170.0,117160.0,1.332073]
[1754744248978,0.1565525,117170.0,117160.0,1.43951999]
[1754744249181,0.2021725,117170.0,117160.0,2.21639999]
[1754744250382,0.2041725,117170.0,117160.0,2.21439999]
[1754744250587,0.2041725,117170.0,117160.0,1.69426679]
[1754744250776,0.2051725,117170.0,117160.0,1.69126679]
[1754744250972,0.2051725,117170.0,117160.0,2.21139999]
[1754744251177,0.2649125,117170.0,117160.0,2.21139999]
[1754744251385,0.3331825,117170.0,117160.0,2.29799999]
[1754744251584,0.3321825,117170.0,117160.0,2.29799999]
[1754744252489,0.3311825,117170.0,117160.0,2.29799999]
[1754744252888,0.3311825,117170.0,117160.0,1.93719999]
[1754744256896,0.3311825,117170.0,117160.0,1.829753]
[1754744258998,0.3311825,117170.0,117160.0,1.3096198]
[1754744259202,0.3311825,117170.0,117160.0,1.829753]
[1754744263405,0.3311825,117170.0,117160.0,1.98311768]
[1754744264403,0.3311825,117170.0,117160.0,0.68610448]
[1754744264708,0.3311825,117170.0,117160.0,1.98295768]
[1754744265708,0.3311825,117170.0,117160.0,1.829593]
[1754744270610,0.5912191,117170.0,117160.0,1.59168567]
[1754744271015,0.3311525,117170.0,117160.0,1.85175227]
[1754744273112,0.3311525,117170.0,117160.0,1.7442132]
[1754744275020,0.5912191,117170.0,117160.0,1.7442132]
[1754744275320,0.3311525,117170.0,117160.0,1.7442132]
[1754744280217,0.3311525,117170.0,117160.0,1.829553]
[1754744283225,0.3311525,117170.0,117160.0,1.7442132]
[1754744283525,0.3311525,117170.0,117160.0,1.829553]
[1754744289933,0.3311525,117170.0,117160.0,1.7442132]
[1754744293434,0.5912191,117170.0,117160.0,1.7442132]
[1754744293836,0.5912191,117170.0,117160.0,1.4841466]
[1754744295031,0.5912191,117170.0,117160.0,1.5694864]
[1754744295335,0.5912191,117170.0,117160.0,1.4841466]
[1754744297739,0.5912191,117170.0,117160.0,1.5694864]
[1754744298543,0.5912191,117170.0,117160.0,1.4841466]
[1754744299043,0.5912191,117170.0,117160.0,1.5694864]
[1754744300261,0.5912191,117170.0,117160.0,1.2086864]
[1754744300448,0.5912191,117170.0,117160.0,1.5694864]
[1754744300643,0.5912191,117170.0,117160.0,1.2086864]
[1754744300946,0.3311525,117170.0,117160.0,1.2086864]
[1754744301148,0.3311525,117170.0,117160.0,1.5694864]
[1754744301349,0.3311525,117170.0,117160.0,1.1233466]
[1754744302251,0.3311525,117170.0,117160.0,1.5694864]
[1754744302846,0.3311525,117170.0,117160.0,1.829553]
[1754744303852,0.3311525,117170.0,117160.0,1.7442132]
[1754744304350,0.3311525,117170.0,117160.0,1.3834132]
[1754744304650,0.3311525,117170.0,117160.0,1.7442132]
[1754744306052,0.3311525,117170.0,117160.0,1.4841466]
[1754744307140,0.3311525,117170.0,117160.0,1.5694864]
[1754744307852,0.3311525,117170.0,117160.0,1.4841466]
[1754744308653,0.3311525,117170.0,117160.0,1.1233466]
[1754744308852,0.3311525,117170.0,117160.0,1.4841466]
[1754744310655,0.3311525,117170.0,117160.0,1.5694864]
[1754744311753,0.3311525,117170.0,117160.0,1.4841466]
[1754744312651,0.3311525,117170.0,117160.0,1.1233466]
[1754744312848,0.3311525,117170.0,117160.0,1.7442132]
[1754744314554,0.3311525,117170.0,117160.0,1.829553]
[1754744316755,0.3311525,117170.0,117160.0,1.7442132]
[1754744317756,0.3311525,117170.0,117160.0,1.829553]
[1754744322560,0.3173325,117170.0,117160.0,1.829553]
[1754744322762,0.2855625,117170.0,117160.0,1.829553]
[1754744346284,0.2855625,117170.0,117160.0,1.052873]
[1754744346487,0.2855625,117170.0,117160.0,1.828993]
[1754744348685,0.2855625,117170.0,117160.0,1.3088598]
[1754744348987,0.3195725,117170.0,117160.0,1.7436132]
[1754744350088,0.3341425,117170.0,117160.0,1.7436132]
[1754744351990,0.5942091,117170.0,117160.0,1.7436132]
[1754744352489,0.5942091,117170.0,117160.0,1.22348]
[1754744352691,0.5942091,117170.0,117160.0,1.7436132]
[1754744353086,0.5942091,117170.0,117160.0,1.22348]
[1754744353391,0.5942091,117170.0,117160.0,1.7436132]
[1754744353594,0.5942091,117170.0,117160.0,1.4835466]
[1754744356494,0.5942091,117170.0,117160.0,0.7074666]
[1754744356793,0.5942091,117170.0,117160.0,1.4834666]
[1754744360093,0.5942091,117170.0,117160.0,1.5688064]
[1754744361098,0.5942091,117170.0,117160.0,1.4834666]
[1754744366499,0.5942091,117170.0,117160.0,1.2234]
[1754744366799,0.5942091,117170.0,117160.0,1.4834666]
[1754744372301,0.5942091,117170.0,117160.0,0.7074666]
[1754744372504,0.3341425,117170.0,117160.0,1.4833066]
[1754744372698,0.5942091,117170.0,117160.0,1.4833066]
[1754744372898,0.3341425,117170.0,117160.0,1.4833066]
[1754744373187,0.5942091,117170.0,117160.0,1.4833066]
[1754744376904,0.3341425,117170.0,117160.0,1.4833066]
[1754744377205,0.5942091,117170.0,117160.0,1.4833066]
[1754744379309,0.5942091,117170.0,117160.0,1.5686465]
[1754744382311,0.5942091,117170.0,117160.0,1.4833066]
[1754744384113,0.5942091,117170.0,117160.0,1.1225066]
[1754744384313,0.5942091,117170.0,117160.0,1.22324]
[1754744384514,0.5942091,117170.0,117160.0,1.4833066]
[1754744388217,0.3341425,117170.0,117160.0,1.1225066]
[1754744388415,0.5942091,117170.0,117160.0,1.1225066]
[1754744391912,0.5942091,117170.0,117160.0,0.86244]
[1754744392111,0.5942091,117170.0,117160.0,1.1225066]
[1754744393222,0.3341425,117170.0,117160.0,1.1225066]
[1754744393417,0.5942091,117170.0,117160.0,1.1225066]
[1754744393720,0.5942091,117170.0,117160.0,1.23007564]
[1754744394920,0.5942091,117170.0,117160.0,1.1225066]
[1754744395114,0.5942091,117170.0,117160.0,1.4833066]
[1754744395317,0.5942091,117170.0,117160.0,1.1225066]
[1754744396122,0.5942091,117170.0,117160.0,1.2300744]
[1754744397123,0.3341425,117170.0,117160.0,0.9700078]
[1754744397322,0.5942091,117170.0,117160.0,1.2300744]
[1754744399025,0.5942091,117170.0,117160.0,1.1225066]
[1754744402726,0.5942091,117170.0,117160.0,1.2300744]
[1754744402930,0.5942091,117170.0,117160.0,0.4542344]
[1754744403127,0.5942091,117170.0,117160.0,0.9697278]
[1754744404928,0.9550091,117170.0,117160.0,0.9697278]
[1754744405130,0.5942091,117170.0,117160.0,0.9697278]
[1754744407432,0.5942091,117170.0,117160.0,0.86216]
[1754744408325,0.3341425,117170.0,117160.0,0.86216]
[1754744408531,0.5942091,117170.0,117160.0,0.86216]
[1754744409323,0.5942091,117170.0,117160.0,0.0866]
[1754744409523,0.5942091,117170.0,117160.0,0.86212]
[1754744410033,0.5942091,117170.0,117160.0,1.1221866]
[1754744411030,0.5942091,117170.0,117160.0,0.86212]
[1754744412738,0.5942091,117170.0,117160.0,0.9696878]
[1754744416840,0.5942091,117170.0,117160.0,0.86212]
[1754744417937,0.8542757,117170.0,117160.0,0.86212]
[1754744418143,0.8542757,117170.0,117160.0,0.821452]
[1754744418343,0.8542757,117170.0,117160.0,0.77552]
[1754744418744,0.8542757,117170.0,117160.0,0.8830878]
[1754744420946,0.5942091,117170.0,117160.0,0.8830878]
[1754744421447,0.5942091,117170.0,117160.0,0.1075678]
[1754744421645,0.5942091,117170.0,117160.0,0.8829678]
[1754744421947,0.8542757,117170.0,117160.0,0.7754]
[1754744422149,0.5942091,117170.0,117160.0,0.7754]
[1754744423446,0.9550091,117170.0,117160.0,0.7754]
[1754744426854,1.2150757,117170.0,117160.0,0.7754]
[1754744427056,0.6949425,117170.0,117160.0,0.7754]
[1754744427253,0.9550091,117170.0,117160.0,0.7754]
[1754744428054,0.6949425,117170.0,117160.0,0.7754]
[1754744428253,0.9550091,117170.0,117160.0,0.7754]
[1754744430861,1.2150757,117170.0,117160.0,0.7754]
[1754744432264,0.9550091,117170.0,117160.0,0.7754]
[1754744432861,1.02191386,117170.0,117160.0,0.7754]
[1754744436972,0.76184726,117170.0,117160.0,0.7754]
[1754744437375,1.02191386,117170.0,117160.0,0.7754]
[1754744438173,0.66111386,117170.0,117160.0,0.7754]
[1754744438972,1.02191386,117170.0,117160.0,0.7754]
[1754744440876,0.66111386,117170.0,117160.0,0.7754]
[1754744441874,0.40104726,117170.0,117160.0,0.7754]
[1754744442280,0.66111386,117170.0,117160.0,0.7754]
[1754744448082,1.28198046,117170.0,117160.0,0.7754]
[1754744451174,0.1093572,117150.0,117140.0,0.63841011]
[1754744451371,0.3694238,117150.0,117140.0,1.41365011]
[1754744451975,0.3694238,117150.0,117140.0,1.45960011]
[1754744452377,0.1093572,117150.0,117140.0,1.45960011]
[1754744452577,0.3704238,117150.0,117140.0,1.46260011]
[1754744453583,0.3704238,117150.0,117140.0,1.46660011]
[1754744454286,0.3704238,117150.0,117140.0,1.46260011]
[1754744454889,0.3704238,117150.0,117140.0,1.45960011]
[1754744455877,0.3704238,117150.0,117140.0,1.19953351]
[1754744456082,0.3704238,117150.0,117140.0,1.45960011]
[1754744456690,0.1103572,117150.0,117140.0,1.45960011]
[1754744456990,0.3704238,117150.0,117140.0,1.71966671]
[1754744457884,0.4387038,117150.0,117140.0,1.71966671]
[1754744458085,0.4736938,117150.0,117140.0,1.71966671]
[1754744458282,0.5135338,117150.0,117140.0,1.45960011]
[1754744462589,0.5135338,117150.0,117140.0,1.71966671]
[1754744463495,0.5348038,117150.0,117140.0,1.71966671]
[1754744463697,0.5945538,117150.0,117140.0,1.71966671]
[1754744464697,0.3344872,117150.0,117140.0,1.71966671]
[1754744464889,0.3344872,117150.0,117140.0,1.80502121]
[1754744465185,0.5945538,117150.0,117140.0,1.75907121]
[1754744465790,0.5808338,117150.0,117140.0,1.75907121]
[1754744467997,0.5808338,117150.0,117140.0,1.67371671]
[1754744468696,0.3207672,117150.0,117140.0,1.67371671]
[1754744468897,0.5808338,117150.0,117140.0,1.67371671]
[1754744469801,0.5808338,117150.0,117140.0,1.75907121]
[1754744471392,0.5951438,117150.0,117140.0,1.75907121]
[1754744471694,0.3350772,117150.0,117140.0,1.75907121]
[1754744471888,0.5951438,117150.0,117140.0,1.75907121]
[1754744473799,0.5951438,117150.0,117140.0,1.75907111]
[1754744474201,0.5951438,117150.0,117140.0,1.67371671]
[1754744474396,0.3350772,117150.0,117140.0,1.67371671]
[1754744474596,0.5951438,117150.0,117140.0,1.67371671]
[1754744474790,0.5951438,117150.0,117140.0,1.31291671]
[1754744475699,0.5951438,117150.0,117140.0,1.67371671]
[1754744475895,0.5951438,117150.0,117140.0,1.31291671]
[1754744476096,0.3350772,117150.0,117140.0,1.13820461]
[1754744476401,0.5951438,117150.0,117140.0,1.49900461]
[1754744476700,0.5951438,117150.0,117140.0,1.75907121]
[1754744477102,0.5951438,117150.0,117140.0,1.31291671]
[1754744477296,0.5951438,117150.0,117140.0,1.67371671]
[1754744477491,0.3350772,117150.0,117140.0,1.67371671]
[1754744477691,0.5951438,117150.0,117140.0,1.67371671]
[1754744478700,0.5951438,117150.0,117140.0,1.41365011]
[1754744479399,0.5951438,117150.0,117140.0,1.49900451]
[1754744479793,0.5951438,117150.0,117140.0,1.75907111]
[1754744482997,0.61446141,117150.0,117140.0,1.23893791]
[1754744483204,0.61446141,117150.0,117140.0,1.75907111]
[1754744483706,0.61446141,117150.0,117140.0,1.67371671]
[1754744484001,0.61446141,117150.0,117140.0,1.15358351]
[1754744484198,0.61446141,117150.0,117140.0,1.67371671]
[1754744484501,0.35439481,117150.0,117140.0,1.86665884]
[1754744484702,0.61446141,117150.0,117140.0,1.86665884]
[1754744484901,0.61446141,117150.0,117140.0,1.60659224]
[1754744488306,0.35439481,117150.0,117140.0,1.60659224]
[1754744488501,0.61446141,117150.0,117140.0,1.34652564]
[1754744488905,0.61446141,117150.0,117140.0,1.49900461]
[1754744489400,0.35439481,117150.0,117140.0,1.49900461]
[1754744489606,0.61446141,117150.0,117140.0,1.49900461]
[1754744490107,0.61446141,117150.0,117140.0,1.75907121]
[1754744490308,0.61446141,117150.0,117140.0,1.86665909]
[1754744492012,0.61446141,117150.0,117140.0,1.75907121]
[1754744492510,0.61446141,117150.0,117140.0,1.86665821]
[1754744492911,0.35439481,117150.0,117140.0,1.86665821]
[1754744493115,0.61446141,117150.0,117140.0,1.86665821]
[1754744494303,0.61446141,117150.0,117140.0,1.34652501]
[1754744494608,0.61446141,117150.0,117140.0,1.86665821]
[1754744495207,0.61446141,117150.0,117140.0,1.75907121]
[1754744495407,0.35439481,117150.0,117140.0,1.75907121]
[1754744495709,0.61446141,117150.0,117140.0,1.75907121]
[1754744498714,0.35439481,117150.0,117140.0,1.23893801]
[1754744498915,0.61446141,117150.0,117140.0,1.75907121]
[1754744499315,0.61446141,117150.0,117140.0,1.23893801]
[1754744499518,0.61446141,117150.0,117140.0,1.77095121]
[1754744499820,0.35439481,117150.0,117140.0,1.77095121]
[1754744500022,0.61446141,117150.0,117140.0,1.77095121]
[1754744500216,0.61446141,117150.0,117140.0,0.46369791]
[1754744500528,0.61446141,117150.0,117140.0,1.51088451]
[1754744502619,0.35439481,117150.0,117140.0,1.51088451]
[1754744503112,0.35439481,117150.0,117140.0,1.77095111]
[1754744503317,0.61446141,117150.0,117140.0,1.77095111]
[1754744503822,0.35439481,117150.0,117140.0,1.77095111]
[1754744504018,0.61446141,117150.0,117140.0,1.77095111]
[1754744508823,0.61446141,117150.0,117140.0,1.25081791]
[1754744509024,0.61446141,117150.0,117140.0,1.77095111]
[1754744509226,0.35439481,117150.0,117140.0,1.77095111]
[1754744509526,0.61446141,117150.0,117140.0,1.77095111]
[1754744509927,0.61446141,117150.0,117140.0,1.87853439]
[1754744513528,0.61446141,117150.0,117140.0,1.77095111]
[1754744514127,0.61446141,117150.0,117140.0,1.92431579]
[1754744515634,0.61446141,117150.0,117140.0,1.77095111]
[1754744518036,0.35439481,117150.0,117140.0,1.77095111]
[1754744518230,0.61446141,117150.0,117140.0,1.77095111]
[1754744520629,0.25770481,117150.0,117140.0,1.77095111]
[1754744520828,0.29226481,117150.0,117140.0,1.77095111]
[1754744521035,0.35484481,117150.0,117140.0,1.77095111]
[1754744521240,0.35484481,117150.0,117140.0,1.92431579]
[1754744523735,0.35484481,117150.0,117140.0,1.77095111]
[1754744525439,0.61491141,117150.0,117140.0,1.77095111]
[1754744525741,0.61491141,117150.0,117140.0,1.25081791]
[1754744526037,0.61491141,117150.0,117140.0,1.77095111]
[1754744526938,0.35484481,117150.0,117140.0,1.77095111]
[1754744527237,0.61491141,117150.0,117140.0,1.77095111]
[1754744529433,0.61491141,117150.0,117140.0,1.76799111]
[1754744529834,0.35484481,117150.0,117140.0,1.76799111]
[1754744530033,0.61491141,117150.0,117140.0,1.76799111]
[1754744531740,0.61491141,117150.0,117140.0,1.87558476]
[1754744531945,0.61491141,117150.0,117140.0,1.76799111]
[1754744535639,0.61491141,117150.0,117140.0,1.92169632]
[1754744539145,0.61491141,117150.0,117140.0,1.56089632]
[1754744539346,0.61491141,117150.0,117140.0,1.92169632]
[1754744540440,0.35484481,117150.0,117140.0,1.92169632]
[1754744540644,0.61491141,117150.0,117140.0,1.92169632]
[1754744544344,0.61491141,117150.0,117140.0,1.90415281]
[1754744546548,0.35484481,117150.0,117140.0,1.90415281]
[1754744546743,0.61491141,117150.0,117140.0,1.90415281]
[1754744546946,0.61491141,117150.0,117140.0,1.7504476]
[1754744548649,0.61491141,117150.0,117140.0,1.2303144]
[1754744548852,0.61491141,117150.0,117140.0,1.7504476]
[1754744550246,0.35484481,117150.0,117140.0,1.85804066]
[1754744550447,0.61491141,117150.0,117140.0,1.85804066]
[1754744550641,0.61491141,117150.0,117140.0,1.49724066]
[1754744550845,0.35484481,117150.0,117140.0,1.85804066]
[1754744554458,0.61491141,117150.0,117140.0,1.85804066]
[1754744555059,0.35484481,117150.0,117140.0,1.85804066]
[1754744558253,0.35484481,117150.0,117140.0,1.90415281]
[1754744559059,0.61491141,117150.0,117140.0,1.90415281]
[1754744560060,0.35484481,117150.0,117140.0,1.90415281]
[1754744561159,0.61491141,117150.0,117140.0,1.90415281]
[1754744561361,0.35484481,117150.0,117140.0,1.90415281]
[1754744561860,0.35484481,117150.0,117140.0,2.04525803]
[1754744563850,0.35484481,117150.0,117140.0,2.15285064]
[1754744564662,0.35484481,117150.0,117140.0,1.99914543]
[1754744568666,0.68546402,117150.0,117140.0,1.99914543]
[1754744569862,0.35484481,117150.0,117140.0,1.99914543]
[1754744570063,0.68546402,117150.0,117140.0,1.89155282]
[1754744570465,0.68546402,117150.0,117140.0,2.04525803]
[1754744570862,0.35484481,117150.0,117140.0,2.04525803]
[1754744573665,0.35484481,117150.0,117140.0,1.89155282]
[1754744576971,0.35484481,117150.0,117140.0,1.93749282]
[1754744581074,0.35484481,117150.0,117140.0,1.57669282]
[1754744581372,0.35484481,117150.0,117140.0,1.93749282]
[1754744583273,0.35484481,117150.0,117140.0,2.09119803]
[1754744583473,0.68546402,117150.0,117140.0,2.09119803]
[1754744587878,0.35484481,117150.0,117140.0,2.09119803]
[1754744589583,0.68546402,117150.0,117140.0,2.09119803]
[1754744589784,0.68546402,117150.0,117140.0,1.93749282]
[1754744591487,0.68546402,117150.0,117140.0,1.2762544]
[1754744591683,0.68546402,117150.0,117140.0,1.93749282]
[1754744593288,0.68546402,117150.0,117140.0,1.93749292]
[1754744594589,0.68546402,117150.0,117140.0,2.09119813]
[1754744597190,0.68546402,117150.0,117140.0,1.93749292]
[1754744599692,0.68546402,117150.0,117140.0,1.85213842]
[1754744599991,0.68546402,117150.0,117140.0,1.93749292]
[1754744600191,0.35484481,117150.0,117140.0,1.93749292]
[1754744600492,0.68546402,117150.0,117140.0,1.93749292]
[1754744602094,0.68546402,117150.0,117140.0,1.85213842]
[1754744602290,0.68636402,117150.0,117140.0,1.85303842]
[1754744602692,0.68636402,117150.0,117140.0,1.93839292]
[1754744603393,0.68636402,117150.0,117140.0,1.57759292]
[1754744603697,0.68546402,117150.0,117140.0,1.93749292]
[1754744604398,0.66614641,117150.0,117140.0,1.93749292]
[1754744605494,0.66614641,117150.0,117140.0,1.85213842]
[1754744605797,0.66614641,117150.0,117140.0,1.95972856]
[1754744606399,0.66614641,117150.0,117140.0,2.04508306]
[1754744608398,0.66614641,117150.0,117140.0,2.04508296]
[1754744610302,0.66614641,117150.0,117140.0,1.95972856]
[1754744610498,0.66614641,117150.0,117140.0,1.29849014]